bitfinex-derivatives/quotes_ETHF0:USTF0_20230101
["timestamp","ask_amount","ask_price","bid_price","bid_amount"]
[1672534816930,3.13227035,1194.1,1194.0,3.0]
[1672534817453,3.13227035,1194.1,1194.0,4.25625498]
[1672534817660,5.63822278,1194.1,1194.0,4.25625498]
[1672534819973,2.50595243,1194.1,1194.0,6.14072763]
[1672534821752,2.50595243,1194.1,1194.0,4.88447265]
[1672534824184,5.63822278,1194.2,1194.0,7.39576217]
[1672534824388,5.63822278,1194.2,1194.1,3.13841246]
[1672534824596,3.13227035,1194.2,1194.0,6.13841246]
[1672534824807,2.50669053,1194.1,1194.0,6.13841246]
[1672534825125,2.50669053,1194.1,1194.0,4.88447265]
[1672534825965,2.50669053,1194.1,1194.0,7.39576217]
[1672534826703,3.13227035,1194.2,1194.0,7.39576217]
[1672534826704,5.63896088,1194.2,1194.0,7.39576217]
[1672534826913,5.63896088,1194.2,1194.1,1.25397814]
[1672534827754,3.13227035,1194.2,1194.1,1.25397814]
[1672534838157,3.13227035,1194.2,1194.1,3.13845079]
[1672534840049,3.13227035,1194.2,1194.1,1.25397814]
[1672534842675,8.26379652,1194.3,1194.1,1.25397814]
[1672534843311,3.13409923,1194.2,1194.1,1.25397814]
[1672534851612,8.26379652,1194.3,1194.1,1.25397814]
[1672534852555,8.26379652,1194.3,1194.1,1.24732775]
[1672534854132,8.26379652,1194.3,1194.1,3.1318004]
[1672534857279,12.64518548,1194.3,1194.1,3.1318004]
[1672534857805,12.64518548,1194.3,1194.1,1.88447265]
[1672534858654,8.26379652,1194.3,1194.1,1.88447265]
[1672534861177,12.64518548,1194.3,1194.1,1.88447265]
[1672534862543,8.26379652,1194.3,1194.1,1.88447265]
[1672534865275,12.64518548,1194.3,1194.1,1.88447265]
[1672534867278,8.26379652,1194.3,1194.1,1.88447265]
[1672534868219,8.26379652,1194.3,1194.1,4.39576217]
[1672534868534,8.26379652,1194.3,1194.1,1.88447265]
[1672534869170,8.26379652,1194.3,1194.1,4.39576217]
[1672534873485,3.1392268,1194.2,1194.1,4.39576217]
[1672534873799,8.26379652,1194.3,1194.1,4.39576217]
[1672534874326,3.13929487,1194.2,1194.1,4.39576217]
[1672534874530,3.13929487,1194.2,1194.1,2.51128952]
[1672534874951,3.13929487,1194.2,1194.1,4.39566742]
[1672534875483,3.13929487,1194.2,1194.1,4.3955666]
[1672534875798,3.13929487,1194.2,1194.1,2.51128952]
[1672534876008,3.13929487,1194.2,1194.1,4.3955617]
[1672534876218,3.13929487,1194.2,1194.1,2.51128952]
[1672534876422,8.26379652,1194.3,1194.1,1.88427676]
[1672534876634,8.26379652,1194.3,1194.1,4.39556628]
[1672534876849,3.13877221,1194.2,1194.1,4.39556628]
[1672534877054,8.26379652,1194.3,1194.1,4.39556628]
[1672534877377,3.13873539,1194.2,1194.1,4.39556628]
[1672534878114,8.26379652,1194.3,1194.0,7.39556628]
[1672534878318,3.13850728,1194.1,1194.0,7.39556628]
[1672534878850,2.51073254,1194.1,1194.0,29.51313054]
[1672534879053,2.51073254,1194.3,1194.1,0.32986993]
[1672534879260,5.64962554,1194.3,1194.2,12.98573489]
[1672534879472,5.64962554,1194.3,1194.2,12.75471866]
[1672534879784,5.64754979,1194.3,1194.2,10.87169638]
[1672534879994,3.13850728,1194.3,1194.2,10.87169638]
[1672534880205,5.64756217,1194.3,1194.2,12.35621346]
[1672534880627,3.13850728,1194.3,1194.2,10.87169638]
[1672534881046,5.64755586,1194.3,1194.2,10.87169638]
[1672534881369,5.64755586,1194.3,1194.2,12.75398046]
[1672534883149,2.50904858,1194.3,1194.2,10.24328408]
[1672534884206,2.50904858,1194.3,1194.2,12.75398046]
[1672534887044,2.50904858,1194.3,1194.2,22.79283028]
[1672534891354,5.64755586,1194.4,1194.2,20.2821339]
[1672534891668,5.64755586,1194.4,1194.3,4.5]
[1672534892615,3.13850728,1194.4,1194.3,4.5]
[1672534893667,5.64411534,1194.4,1194.3,4.5]
[1672534895763,3.13850728,1194.4,1194.3,4.5]
[1672534902276,4.5,1194.5,1194.3,4.5]
[1672534902483,8.26379652,1194.5,1194.3,4.5]
[1672534902695,3.13105123,1194.4,1194.3,4.5]
[1672534904801,8.26379652,1194.5,1194.2,4.88228408]
[1672534905011,8.26379652,1194.5,1194.3,4.5]
[1672534905218,12.64518548,1194.5,1194.2,3.0]
[1672534905432,3.13217974,1194.3,1194.2,4.5]
[1672534905854,6.13217974,1194.3,1194.2,4.5]
[1672534907013,3.13217974,1194.3,1194.2,4.5]
[1672534907224,3.13217974,1194.3,1194.2,6.38228408]
[1672534909643,3.13217974,1194.3,1194.2,4.5]
[1672534911854,3.13217974,1194.3,1194.2,6.38228408]
[1672534922671,3.12550577,1194.3,1194.2,6.38228408]
[1672534927077,6.12550577,1194.3,1194.2,6.38228408]
[1672534929395,6.12550577,1194.3,1194.2,8.89298046]
[1672534930019,6.12550577,1194.3,1194.2,6.38228408]
[1672534930229,6.12550577,1194.3,1194.2,8.89298046]
[1672534933810,3.12550577,1194.3,1194.2,15.37169638]
[1672534934021,5.63449206,1194.3,1194.2,16.85621608]
[1672534936545,2.50898629,1194.3,1194.2,19.99624542]
[1672534936754,2.50898629,1194.3,1194.2,16.85621608]
[1672534937176,2.50898629,1194.3,1194.2,19.99624542]
[1672534938108,2.50898629,1194.3,1194.2,30.17048083]
[1672534938431,2.50898629,1194.3,1194.2,27.65978445]
[1672534938642,0.87408538,1194.4,1194.2,27.65978445]
[1672534938853,4.5,1194.5,1194.3,12.35647407]
[1672534939063,4.5,1194.5,1194.4,4.8824706]
[1672534940853,3.76379652,1194.6,1194.4,13.2434706]
[1672534941067,8.26379652,1194.6,1194.4,13.2434706]
[1672534942643,3.13467114,1194.5,1194.4,13.2434706]
[1672534945065,3.13467114,1194.5,1194.4,11.361]
[1672534946114,3.13467114,1194.5,1194.4,13.2434706]
[1672534946323,3.13467114,1194.5,1194.4,11.361]
[1672534949062,3.13467114,1194.5,1194.4,13.2434706]
[1672534952313,7.63467114,1194.6,1194.4,13.2434706]
[1672534953049,7.63467114,1194.6,1194.4,13.65893957]
[1672534956628,3.13467114,1194.6,1194.5,10.2434706]
[1672534957049,3.13467114,1194.7,1194.5,8.361]
[1672534957256,3.13467114,1194.8,1194.6,1.8824706]
[1672534957466,3.13467114,1194.9,1194.7,10.2434706]
[1672534958305,6.13467114,1194.9,1194.7,10.2434706]
[1672534958524,6.13467114,1194.9,1194.8,12.861]
[1672534963149,3.0,1194.9,1194.8,12.861]
[1672534966089,3.0,1194.9,1194.8,4.5]
[1672534966300,6.13467114,1194.9,1194.7,4.5]
[1672534966933,3.0,1194.9,1194.7,12.861]
[1672534968717,5.49998622,1194.9,1194.7,12.861]
[1672534972599,8.63465736,1194.9,1194.7,12.861]
[1672534973133,2.49998622,1194.8,1194.7,12.861]
[1672534974075,2.49998622,1194.8,1194.6,22.11117467]
[1672534974286,5.63465736,1194.8,1194.6,1.5]
[1672534974492,5.63465736,1194.8,1194.6,4.5]
[1672534974703,2.49998622,1194.8,1194.6,4.5]
[1672534975123,5.63465736,1194.8,1194.6,4.5]
[1672534976908,2.49998622,1194.7,1194.6,4.5]
[1672534986588,5.63465736,1194.7,1194.6,4.5]
[1672534987011,3.13467114,1194.7,1194.6,4.5]
[1672534988590,5.63606523,1194.7,1194.6,4.5]
[1672534988799,5.63609136,1194.7,1194.6,4.5]
[1672534989007,3.13467114,1194.7,1194.6,4.5]
[1672534989960,5.63668008,1194.7,1194.6,4.5]
[1672534990271,3.13467114,1194.7,1194.6,4.5]
[1672534990474,5.63655912,1194.7,1194.6,4.5]
[1672534990896,3.13467114,1194.7,1194.6,4.5]
[1672534991117,3.13467114,1194.7,1194.6,5.75036609]
[1672534995533,2.50381899,1194.7,1194.6,7.63283669]
[1672534996683,5.63849013,1194.7,1194.6,7.63283669]
[1672534997308,2.50381899,1194.7,1194.6,7.63283669]
[1672534997738,2.50381899,1194.7,1194.6,15.99383669]
[1672534997945,2.50381899,1194.7,1194.6,14.7434706]
[1672534999943,2.50381899,1194.7,1194.6,25.79105105]
[1672535000148,2.50381899,1194.7,1194.6,28.30200542]
[1672535002885,2.50381899,1194.7,1194.6,26.41953482]
[1672535005088,2.50381899,1194.7,1194.6,25.78976688]
[1672535005832,5.63849013,1194.7,1194.6,25.78976688]
[1672535006031,2.50381899,1194.7,1194.6,25.78976688]
[1672535006457,2.50381899,1194.7,1194.6,28.30072125]
[1672535007399,2.50381899,1194.7,1194.6,26.41953482]
[1672535007825,2.50381899,1194.7,1194.6,27.90350522]
[1672535008980,3.13467114,1194.8,1194.6,27.90350522]
[1672535008981,5.63849013,1194.8,1194.6,27.90350522]
[1672535009295,2.50381899,1194.7,1194.6,29.55956416]
[1672535009502,2.50381899,1194.7,1194.6,27.90346682]
[1672535010555,2.50381899,1194.7,1194.6,28.30105871]
[1672535010871,2.50381899,1194.7,1194.6,27.9035117]
[1672535011820,2.50381899,1194.8,1194.6,25.39255733]
[1672535012024,2.50381899,1194.8,1194.7,15.48941414]
[1672535012973,5.63849013,1194.9,1194.7,12.35361566]
[1672535013179,5.63849013,1194.9,1194.8,14.49549903]
[1672535013180,3.13467114,1194.9,1194.8,14.49549903]
[1672535013386,3.13467114,1194.9,1194.8,12.61479961]
[1672535013597,3.13467114,1194.9,1194.8,25.02406055]
[1672535013807,5.64033711,1194.9,1194.8,25.02406055]
[1672535014232,3.13467114,1194.9,1194.8,25.02406055]
[1672535014857,5.63977494,1194.9,1194.8,25.02406055]
[1672535015805,2.5051038,1194.9,1194.8,25.02406055]
[1672535016123,3.13467114,1194.9,1194.8,23.14336113]
[1672535017271,3.13467114,1194.9,1194.8,23.13546169]
[1672535018753,5.63899296,1194.9,1194.8,23.13546169]
[1672535018956,2.50432182,1194.9,1194.8,25.01616111]
[1672535019168,2.50432182,1194.9,1194.8,23.13546169]
[1672535019378,5.63899296,1194.9,1194.8,23.13546169]
[1672535020948,5.63899296,1194.9,1194.8,12.60690017]
[1672535021696,2.50432182,1194.9,1194.8,12.60690017]
[1672535022641,5.63899296,1194.9,1194.8,12.60690017]
[1672535022851,2.50432182,1194.9,1194.8,12.60690017]
[1672535024008,2.50432182,1194.9,1194.8,14.48759959]
[1672535026319,2.50432182,1194.9,1194.8,12.60690017]
[1672535027262,5.63899296,1194.9,1194.8,12.60690017]
[1672535028104,3.13467114,1194.9,1194.8,12.60690017]
[1672535029052,3.13467114,1194.9,1194.8,11.35310056]
[1672535030311,3.13467114,1194.9,1194.7,3.13449903]
[1672535030517,5.63872589,1194.8,1194.7,5.75379961]
[1672535030730,5.63870869,1194.8,1194.7,5.75379961]
[1672535030942,3.13467114,1194.8,1194.7,5.75379961]
[1672535032518,3.13467114,1194.8,1194.7,4.5]
[1672535032938,6.13467114,1194.8,1194.7,5.75379961]
[1672535033156,6.13467114,1194.8,1194.7,4.5]
[1672535033677,6.13467114,1194.8,1194.7,5.75379961]
[1672535035053,6.13467114,1194.8,1194.7,7.63449903]
[1672535036405,6.12679489,1194.8,1194.7,7.63449903]
[1672535038411,6.12679489,1194.8,1194.7,3.13449903]
[1672535038619,6.12679489,1194.8,1194.7,5.75379961]
[1672535039147,6.12679489,1194.8,1194.7,7.63449903]
[1672535045445,6.12679489,1194.8,1194.7,15.99549903]
[1672535047337,6.12679489,1194.8,1194.7,7.63449903]
[1672535047551,6.12679489,1194.8,1194.7,6.38069942]
[1672535048282,8.63197775,1194.8,1194.7,6.38069942]
[1672535048498,6.12679489,1194.8,1194.7,7.63494081]
[1672535050185,6.12679489,1194.8,1194.7,15.99594081]
[1672535050917,6.12679489,1194.8,1194.7,14.74169942]
[1672535051757,8.63197859,1194.8,1194.7,14.74169942]
[1672535052179,6.12679489,1194.8,1194.7,14.74169942]
[1672535052490,6.12679489,1194.8,1194.7,15.99593799]
[1672535052705,6.12679489,1194.8,1194.7,14.74169942]
[1672535053021,8.63192845,1194.8,1194.7,14.74169942]
[1672535053225,6.12679489,1194.8,1194.7,14.74169942]
[1672535053546,6.12679489,1194.8,1194.7,6.38069942]
[1672535054701,6.12679489,1194.8,1194.7,14.74169942]
[1672535055851,6.12679489,1194.8,1194.7,6.38069942]
[1672535056168,3.0,1194.8,1194.7,5.75446494]
[1672535056379,6.76379652,1194.8,1194.6,1.25446494]
[1672535056585,11.14518548,1194.8,1194.5,3.13516436]
[1672535056800,3.13071161,1194.6,1194.5,1.25446494]
[1672535057219,3.13071161,1194.6,1194.4,7.63516436]
[1672535057421,2.50271231,1194.5,1194.4,7.63516436]
[1672535058271,2.50271231,1194.5,1194.4,7.63446438]
[1672535058902,2.50271231,1194.5,1194.4,5.75376496]
[1672535059326,2.50271231,1194.5,1194.4,7.63446438]
[1672535059537,7.00271231,1194.6,1194.4,6.38069942]
[1672535059848,7.00271231,1194.6,1194.5,1.25290501]
[1672535065213,10.13342392,1194.6,1194.4,5.75290501]
[1672535065422,2.49978451,1194.5,1194.4,5.75290501]
[1672535069736,2.49978451,1194.5,1194.4,4.5]
[1672535074157,10.13049612,1194.6,1194.4,5.75290501]
[1672535074361,1.87367683,1194.5,1194.4,5.75290501]
[1672535078572,4.37346134,1194.5,1194.4,4.5]
[1672535078776,3.13071161,1194.5,1194.2,3.13360443]
[1672535078987,2.49763298,1194.3,1194.1,14.90490501]
[1672535079202,2.49741195,1194.2,1194.0,3.13360443]
[1672535079407,1.87309848,1194.1,1194.0,3.13360443]
[1672535079624,3.0,1194.1,1194.0,3.13360443]
[1672535079836,3.0,1194.1,1194.0,7.63360443]
[1672535080044,4.37051043,1194.2,1194.0,7.63360443]
[1672535080356,4.37051043,1194.2,1194.1,3.0]
[1672535080563,1.87309848,1194.2,1194.1,4.25290501]
[1672535080781,6.37309848,1194.2,1194.1,3.0]
[1672535085102,4.5,1194.2,1194.1,3.0]
[1672535088989,6.37309848,1194.2,1194.1,3.0]
[1672535091930,4.5,1194.2,1194.1,3.0]
[1672535092877,4.37051043,1194.3,1194.1,4.25290501]
[1672535093082,1.87309848,1194.3,1194.1,6.13360443]
[1672535093503,6.37309848,1194.3,1194.2,1.25290501]
[1672535094241,4.5,1194.3,1194.2,1.25290501]
[1672535094870,6.37309848,1194.3,1194.2,1.25290501]
[1672535095715,6.37309848,1194.3,1194.1,4.25290501]
[1672535095716,6.99741195,1194.3,1194.1,4.25290501]
[1672535095926,1.87298909,1194.2,1194.1,4.25290501]
[1672535099186,1.87298909,1194.2,1194.1,3.0]
[1672535099390,1.87298909,1194.2,1194.1,1.25290501]
[1672535099602,1.87298909,1194.2,1194.0,7.63360443]
[1672535099919,3.0,1194.1,1194.0,7.63360443]
[1672535100972,3.0,1194.1,1194.0,6.38069942]
[1672535101182,3.0,1194.1,1194.0,7.63283782]
[1672535101606,3.0,1194.1,1194.0,6.38069942]
[1672535104339,1.87298909,1194.2,1194.0,6.38069942]
[1672535104550,1.87298909,1194.2,1194.1,1.25235684]
[1672535106755,1.87298909,1194.2,1194.1,3.13305626]
[1672535108646,1.86960213,1194.2,1194.1,3.13305626]
[1672535111067,1.86960213,1194.2,1194.1,1.88069942]
[1672535111798,1.86960213,1194.2,1194.1,3.13386849]
[1672535112216,1.86960213,1194.2,1194.1,1.88069942]
[1672535113479,2.49741195,1194.2,1194.1,3.13421375]
[1672535114941,2.49741195,1194.2,1194.1,1.88069942]
[1672535116735,2.49741195,1194.2,1194.1,4.3893382]
[1672535118105,2.49741195,1194.2,1194.1,2.50863878]
[1672535118317,2.49741195,1194.2,1194.1,4.39103628]
[1672535118739,3.12204123,1194.2,1194.1,2.50863878]
[1672535119145,2.50442143,1194.2,1194.1,4.62041203]
[1672535125988,2.50442143,1194.2,1194.1,7.13147401]
[1672535126614,2.50442143,1194.2,1194.1,3.99567553]
[1672535127144,2.50442143,1194.2,1194.1,7.13147401]
[1672535127352,2.50442143,1194.2,1194.1,3.99567553]
[1672535130610,5.62646266,1194.2,1194.1,3.99567553]
[1672535133024,5.62646266,1194.2,1194.1,2.51106198]
[1672535133239,3.12204123,1194.2,1194.1,1.88354285]
[1672535133452,3.12204123,1194.2,1194.1,4.39460483]
[1672535135030,3.12204123,1194.2,1194.1,2.51106198]
[1672535135338,3.12204123,1194.2,1194.1,4.39477531]
[1672535143751,3.12204123,1194.2,1194.1,1.88371333]
[1672535143949,3.12204123,1194.2,1194.1,4.39477531]
[1672535145536,3.12204123,1194.2,1194.1,1.88371333]
[1672535146794,3.12992298,1194.2,1194.1,3.1394296]
[1672535147007,3.12992298,1194.2,1194.1,1.88371333]
[1672535147419,3.12992298,1194.2,1194.1,3.1393968]
[1672535147630,3.12984751,1194.2,1194.1,3.1393968]
[1672535147839,3.12984751,1194.2,1194.1,1.88371333]
[1672535148168,3.12984751,1194.2,1194.1,3.13939974]
[1672535148369,3.12984751,1194.2,1194.1,1.88371333]
[1672535148690,3.12984751,1194.2,1194.1,3.1392464]
[1672535149106,3.12984751,1194.2,1194.1,1.88371333]
[1672535152790,3.12984751,1194.2,1194.1,4.39477531]
[1672535153003,5.63331067,1194.2,1194.1,4.39477531]
[1672535154157,3.12984751,1194.2,1194.1,4.39477531]
[1672535154362,3.12984751,1194.2,1194.1,1.88371333]
[1672535160460,3.12984751,1194.2,1194.1,4.39477531]
[1672535162044,3.12984751,1194.2,1194.1,1.88371333]
[1672535162244,3.12984751,1194.2,1194.1,4.39477531]
[1672535163717,2.50382451,1194.2,1194.1,3.99564534]
[1672535163931,2.50382451,1194.2,1194.1,4.62038184]
[1672535165196,5.63367202,1194.3,1194.1,4.62038184]
[1672535165405,3.12984751,1194.3,1194.2,7.39381014]
[1672535165610,5.63327406,1194.3,1194.2,7.39381014]
[1672535165816,5.63341017,1194.3,1194.2,5.51074865]
[1672535166241,5.63341017,1194.3,1194.2,6.99523429]
[1672535166446,2.50356266,1194.3,1194.2,5.51074865]
[1672535167821,2.50356266,1194.3,1194.2,6.99521886]
[1672535168443,2.50356266,1194.3,1194.2,5.51074865]
[1672535170020,2.50356266,1194.3,1194.2,8.87750645]
[1672535170335,2.50356266,1194.3,1194.2,5.51074865]
[1672535171809,2.50356266,1194.3,1194.2,7.39264722]
[1672535172445,2.50356266,1194.3,1194.2,4.88189857]
[1672535175596,2.50356266,1194.3,1194.2,7.39264722]
[1672535176331,2.50356266,1194.3,1194.2,4.88189857]
[1672535177805,4.37908162,1194.3,1194.2,7.39264722]
[1672535178328,4.37908162,1194.3,1194.2,5.39264722]
[1672535178529,2.50356266,1194.3,1194.2,3.0]
[1672535182218,4.37913577,1194.3,1194.2,3.0]
[1672535182426,4.37911292,1194.3,1194.2,3.0]
[1672535185373,4.37912676,1194.3,1194.2,3.0]
[1672535186209,1.8755641,1194.3,1194.2,11.361]
[1672535189465,1.8755641,1194.3,1194.2,12.84541393]
[1672535190839,4.37912676,1194.3,1194.2,11.361]
[1672535192311,4.37912676,1194.3,1194.2,12.84543728]
[1672535192937,2.50356266,1194.3,1194.2,11.361]
[1672535193672,5.63341017,1194.3,1194.2,12.61553424]
[1672535193883,3.12984751,1194.3,1194.2,12.61553424]
[1672535198288,3.12984751,1194.3,1194.2,11.361]
[1672535205447,5.63281106,1194.3,1194.2,11.361]
[1672535205663,5.63281106,1194.3,1194.2,12.84548405]
[1672535205970,5.63281106,1194.3,1194.2,11.361]
[1672535208283,5.63281106,1194.3,1194.2,13.8717689]
[1672535212386,3.12984751,1194.3,1194.2,5.5107689]
[1672535220377,3.12984751,1194.3,1194.2,3.0]
[1672535221843,3.12984751,1194.3,1194.2,5.5107689]
[1672535222793,5.63269129,1194.3,1194.2,5.5107689]
[1672535223004,3.12984751,1194.3,1194.2,5.5107689]
[1672535229523,5.63269857,1194.3,1194.2,6.99526285]
[1672535230364,3.12984751,1194.3,1194.2,6.99526285]
[1672535230576,3.12984751,1194.3,1194.2,5.5107689]
[1672535231100,3.12984751,1194.3,1194.2,6.99526321]
[1672535236350,3.12984751,1194.3,1194.2,10.13106169]
[1672535236554,5.6339452,1194.3,1194.2,10.13106169]
[1672535237192,5.6339452,1194.3,1194.2,6.99526321]
[1672535237405,3.12984751,1194.3,1194.2,6.99526321]
[1672535238243,5.63390158,1194.3,1194.2,6.99526321]
[1672535238453,3.12984751,1194.3,1194.2,6.99526321]
[1672535239389,5.63441395,1194.3,1194.2,10.13106169]
[1672535239708,5.63441395,1194.3,1194.2,10.13247626]
[1672535240126,3.12984751,1194.3,1194.2,6.99667778]
[1672535240660,5.63434159,1194.3,1194.2,10.13247626]
[1672535240869,5.63434159,1194.3,1194.2,7.62029279]
[1672535241180,2.50449408,1194.3,1194.2,10.13234522]
[1672535241391,5.63434159,1194.3,1194.2,10.13235216]
[1672535241605,2.50449408,1194.3,1194.2,15.98129279]
[1672535241815,4.38273308,1194.3,1194.2,15.98129279]
[1672535243176,1.878239,1194.3,1194.2,15.98129279]
[1672535243382,4.38273308,1194.3,1194.2,15.98129279]
[1672535243593,2.50449408,1194.3,1194.2,15.98129279]
[1672535243914,4.38201409,1194.3,1194.2,15.98129279]
[1672535244126,2.50449408,1194.3,1194.2,15.98129279]
[1672535245486,2.50449408,1194.3,1194.2,18.49243464]
[1672535248752,2.50449408,1194.3,1194.2,15.98129279]
[1672535249173,4.3819596,1194.3,1194.2,15.98129279]
[1672535250947,1.87746552,1194.3,1194.2,15.98129279]
[1672535251475,1.87484602,1194.3,1194.2,15.98129279]
[1672535251686,4.3793401,1194.3,1194.2,15.98129279]
[1672535254843,2.50449408,1194.3,1194.2,18.49172754]
[1672535257463,2.50449408,1194.3,1194.2,15.35592906]
[1672535257786,2.50449408,1194.3,1194.2,18.49172754]
[1672535257996,2.50449408,1194.3,1194.2,15.35592906]
[1672535262411,2.50449408,1194.3,1194.2,18.49172754]
[1672535263460,2.50449408,1194.3,1194.2,15.98129279]
[1672535263774,2.50449408,1194.4,1194.2,15.98129279]
[1672535263989,2.50449408,1194.4,1194.3,3.99514571]
[1672535265561,3.12984751,1194.4,1194.3,4.39364651]
[1672535269454,3.12984751,1194.4,1194.3,4.39381826]
[1672535270084,3.12984751,1194.4,1194.3,2.5106514]
[1672535271346,5.63430525,1194.4,1194.3,3.99501979]
[1672535271549,3.12984751,1194.4,1194.3,2.5106514]
[1672535273231,3.12984751,1194.4,1194.3,1.88338261]
[1672535273977,3.12984751,1194.4,1194.3,4.39403401]
[1672535278170,5.6343778,1194.4,1194.3,23.22154919]
[1672535280057,3.12984751,1194.4,1194.3,23.22154919]
[1672535284268,5.63483916,1194.4,1194.3,23.22154919]
[1672535286261,2.50499165,1194.4,1194.3,26.35734767]
[1672535287939,3.12984751,1194.4,1194.3,23.22154919]
[1672535290685,5.63460055,1194.4,1194.3,23.22154919]
[1672535293631,2.50475304,1194.4,1194.3,23.22154919]
[1672535299024,5.63460055,1194.4,1194.3,23.22154919]
[1672535300065,2.50475304,1194.4,1194.3,23.22154919]
[1672535300286,5.63460055,1194.4,1194.3,23.22154919]
[1672535300801,2.50475304,1194.4,1194.3,23.22154919]
[1672535301003,5.63460055,1194.4,1194.3,26.35734767]
[1672535303322,3.12984751,1194.4,1194.3,23.22154919]
[1672535303532,5.63483946,1194.4,1194.3,23.22154919]
[1672535303739,3.12984751,1194.4,1194.3,23.22154919]
[1672535304795,5.63483707,1194.4,1194.3,23.22154919]
[1672535305535,3.12984751,1194.4,1194.3,23.22154919]
[1672535305731,5.63485644,1194.4,1194.3,23.22154919]
[1672535307521,5.63485644,1194.4,1194.3,26.35734767]
[1672535308683,5.63485644,1194.4,1194.3,23.22154919]
[1672535309528,3.12984751,1194.4,1194.3,23.22154919]
[1672535310568,3.12984751,1194.4,1194.3,12.35600117]
[1672535310782,3.12984751,1194.4,1194.3,3.99503946]
[1672535310986,3.12984751,1194.4,1194.3,7.0106514]
[1672535311725,3.12984751,1194.4,1194.3,8.49504744]
[1672535313934,3.12984751,1194.4,1194.3,16.85604744]
[1672535314263,3.12984751,1194.4,1194.3,8.49504744]
[1672535314779,3.12984751,1194.4,1194.3,16.85604744]
[1672535316036,3.12984751,1194.4,1194.3,15.3716514]
[1672535316283,3.12984751,1194.4,1194.3,16.85604722]
[1672535317932,5.6345679,1194.4,1194.3,19.9918457]
[1672535318134,5.63457115,1194.4,1194.3,19.9918457]
[1672535318667,5.63457115,1194.4,1194.3,19.99327199]
[1672535320770,5.63457115,1194.4,1194.3,19.99321217]
[1672535321826,2.50472364,1194.4,1194.3,17.4811943]
[1672535322030,2.50145139,1194.4,1194.3,17.4811943]
[1672535322668,5.6312989,1194.4,1194.3,19.99318012]
[1672535322881,5.6312989,1194.4,1194.3,19.9932002]
[1672535323084,5.6312989,1194.4,1194.3,17.4811943]
[1672535323334,5.6312989,1194.4,1194.3,19.9932074]
[1672535323499,3.12984751,1194.4,1194.3,16.85740892]
[1672535324252,3.12984751,1194.4,1194.3,19.9932074]
[1672535324445,3.12984751,1194.4,1194.3,17.4811943]
[1672535325178,7.62984751,1194.5,1194.3,17.4811943]
[1672535325386,4.5,1194.5,1194.4,3.13995483]
[1672535325593,4.5,1194.5,1194.4,1.88394571]
[1672535325811,4.5,1194.5,1194.4,3.13995511]
[1672535327387,4.5,1194.5,1194.4,1.88394571]
[1672535327702,4.5,1194.5,1194.4,4.88394571]
[1672535331386,4.5,1194.5,1194.4,6.13997247]
[1672535333073,4.5,1194.5,1194.4,4.88394571]
[1672535336643,4.5,1194.5,1194.4,7.39587332]
[1672535336644,7.63032191,1194.5,1194.4,7.39587332]
[1672535336848,7.63033277,1194.5,1194.4,7.39587332]
[1672535337590,7.63033277,1194.5,1194.4,4.88394571]
[1672535338109,7.63024257,1194.5,1194.4,4.88394571]
[1672535338320,4.5,1194.5,1194.4,4.88394571]
[1672535338555,7.63024046,1194.5,1194.4,4.88394571]
[1672535338727,7.63025804,1194.5,1194.4,7.39587332]
[1672535339045,4.5,1194.5,1194.4,4.88394571]
[1672535339258,7.63027046,1194.5,1194.4,7.39587332]
[1672535339772,4.5,1194.5,1194.4,6.13993529]
[1672535340089,4.5,1194.5,1194.4,4.88394571]
[1672535340304,4.5,1194.5,1194.4,6.13993219]
[1672535340511,4.5,1194.5,1194.4,4.88394571]
[1672535342594,4.5,1194.5,1194.4,6.13993276]
[1672535343229,4.5,1194.5,1194.4,4.88394571]
[1672535343438,7.63063147,1194.5,1194.4,4.88394571]
[1672535343644,7.63063147,1194.5,1194.4,7.39587332]
[1672535343850,4.5,1194.5,1194.4,4.88394571]
[1672535344599,4.5,1194.5,1194.4,6.13990945]
[1672535345121,7.63061043,1194.5,1194.4,4.88394571]
[1672535345320,4.5,1194.5,1194.4,4.88394571]
[1672535345648,3.76379652,1194.6,1194.4,4.88394571]
[1672535345855,3.13057968,1194.5,1194.4,5.51192761]
[1672535346071,7.63057968,1194.5,1194.4,5.51192761]
[1672535346387,7.63057968,1194.5,1194.4,4.88386396]
[1672535346388,4.5,1194.5,1194.4,4.88386396]
[1672535346585,7.63048668,1194.5,1194.4,4.88386396]
[1672535346799,7.63048668,1194.5,1194.4,7.39579157]
[1672535347332,7.63048668,1194.5,1194.4,4.88386396]
[1672535347541,4.5,1194.5,1194.4,4.88386396]
[1672535348065,7.63057873,1194.5,1194.4,7.39579157]
[1672535348699,7.63057873,1194.5,1194.4,4.88386396]
[1672535348901,7.63057873,1194.5,1194.4,7.39579157]
[1672535349536,7.63057873,1194.5,1194.4,4.88386396]
[1672535349741,7.63057873,1194.5,1194.4,7.39579157]
[1672535349953,7.63057873,1194.5,1194.4,4.88386396]
[1672535350163,7.63057873,1194.5,1194.4,7.39579157]
[1672535351540,3.13057873,1194.5,1194.4,15.75679157]
[1672535351751,1.87828,1194.5,1194.4,12.84513669]
[1672535353639,4.38273935,1194.6,1194.4,15.98144572]
[1672535353853,4.38273935,1194.6,1194.5,12.35418423]
[1672535354373,4.38273935,1194.6,1194.5,12.96776795]
[1672535357213,4.38273935,1194.6,1194.5,11.48363126]
[1672535357530,4.38273935,1194.6,1194.5,12.96768876]
[1672535357739,1.87828,1194.6,1194.5,11.48363126]
[1672535358373,1.87828,1194.6,1194.5,12.96765723]
[1672535359736,4.38273935,1194.7,1194.5,16.10396626]
[1672535359945,1.87828,1194.7,1194.6,12.74716677]
[1672535361731,1.87828,1194.7,1194.6,11.49343586]
[1672535361949,1.87828,1194.7,1194.6,10.24078576]
[1672535363528,1.87828,1194.7,1194.6,11.49337294]
[1672535366678,1.87828,1194.8,1194.6,10.86738101]
[1672535366893,1.87828,1194.8,1194.7,15.49102321]
[1672535367205,1.87360164,1194.8,1194.7,14.23901393]
[1672535367408,1.87360164,1194.8,1194.7,26.41746319]
[1672535368775,1.87360164,1194.9,1194.8,3.5]
[1672535368985,4.37806099,1194.9,1194.8,3.5]
[1672535369196,1.87360164,1194.9,1194.8,4.75155889]
[1672535369613,4.87360164,1194.9,1194.8,4.75155889]
[1672535369829,4.87360164,1194.9,1194.8,3.5]
[1672535370993,7.37806099,1194.9,1194.8,3.5]
[1672535372459,4.87360164,1194.9,1194.8,3.5]
[1672535372673,7.37806099,1194.9,1194.8,3.5]
[1672535373504,4.87360164,1194.9,1194.8,3.5]
[1672535373720,1.87360164,1194.9,1194.8,3.5]
[1672535373927,3.04968398,1195.1,1194.8,13.73901393]
[1672535374150,2.50445935,1195.1,1194.9,1.25065446]
[1672535374351,2.50445935,1195.1,1195.0,4.0]
[1672535374669,5.63503808,1195.2,1195.0,4.0]
[1672535374880,2.50445935,1195.1,1195.0,4.0]